[Event "Live Chess"]
[Site "Chess.com"]
[Date "2011.01.27"]
[Round "-"]
[White "froochie"]
[Black "hipposcottimus"]
[Result "1-0"]
[CurrentPosition "Q5k1/2p1rppp/3q2b1/1B3P2/3P2P1/P3B2P/1PPn4/R3R1K1 b - -"]
[Timezone "UTC"]
[ECO "A04"]
[ECOUrl "https://www.chess.com/openings/Reti-Opening-Ross-Gambit-2.Nxe5"]
[UTCDate "2011.01.27"]
[UTCTime "03:37:02"]
[WhiteElo "1297"]
[BlackElo "1601"]
[TimeControl "60+1"]
[Termination "froochie won on time"]
[StartTime "03:37:02"]
[EndDate "2011.01.27"]
[EndTime "03:40:13"]
[Link "https://www.chess.com/game/live/91782581"]

1. Nf3 {[%clk 0:01:00]} 1... e5 {[%clk 0:01:00]} 2. Nxe5 {[%clk 0:00:59.2]} 2... d6 {[%clk 0:01:00.4]} 3. Nf3 {[%clk 0:01:00]} 3... Bg4 {[%clk 0:00:59.6]} 4. e4 {[%clk 0:00:59.9]} 4... Nf6 {[%clk 0:00:59.5]} 5. h3 {[%clk 0:00:59.1]} 5... Bh5 {[%clk 0:00:59.1]} 6. g4 {[%clk 0:00:57.4]} 6... Bg6 {[%clk 0:00:59.5]} 7. d3 {[%clk 0:00:56]} 7... Nc6 {[%clk 0:00:56.6]} 8. Be3 {[%clk 0:00:56.6]} 8... d5 {[%clk 0:00:55.8]} 9. Be2 {[%clk 0:00:56.7]} 9... dxe4 {[%clk 0:00:55.6]} 10. Nfd2 {[%clk 0:00:54.2]} 10... Be7 {[%clk 0:00:56.1]} 11. d4 {[%clk 0:00:53.4]} 11... O-O {[%clk 0:00:55.2]} 12. O-O {[%clk 0:00:53.2]} 12... Qd6 {[%clk 0:00:47.2]} 13. Nc3 {[%clk 0:00:53.4]} 13... Nb4 {[%clk 0:00:40]} 14. Nc4 {[%clk 0:00:49.3]} 14... Qd7 {[%clk 0:00:36]} 15. a3 {[%clk 0:00:45]} 15... b5 {[%clk 0:00:35.8]} 16. Na5 {[%clk 0:00:40.5]} 16... Nc6 {[%clk 0:00:33.8]} 17. Nb7 {[%clk 0:00:36.9]} 17... Rab8 {[%clk 0:00:32.8]} 18. Nc5 {[%clk 0:00:30.4]} 18... Qd6 {[%clk 0:00:30.1]} 19. Nxb5 {[%clk 0:00:26.9]} 19... Qd8 {[%clk 0:00:25.3]} 20. Nxa7 {[%clk 0:00:23.1]} 20... Ra8 {[%clk 0:00:18.3]} 21. Nxc6 {[%clk 0:00:22.5]} 21... Qd6 {[%clk 0:00:17.2]} 22. Nxe7+ {[%clk 0:00:21.5]} 22... Qxe7 {[%clk 0:00:16.9]} 23. Nxe4 {[%clk 0:00:18]} 23... Nxe4 {[%clk 0:00:16.7]} 24. f3 {[%clk 0:00:17.6]} 24... Ng3 {[%clk 0:00:16.3]} 25. Re1 {[%clk 0:00:13.6]} 25... Qd6 {[%clk 0:00:09.5]} 26. f4 {[%clk 0:00:11.9]} 26... Rfe8 {[%clk 0:00:08.8]} 27. Bb5 {[%clk 0:00:09.6]} 27... Re7 {[%clk 0:00:04.6]} 28. Qf3 {[%clk 0:00:08.2]} 28... Ne4 {[%clk 0:00:01.6]} 29. f5 {[%clk 0:00:03.6]} 29... Nd2 {[%clk 0:00:01.6]} 30. Qxa8+ {[%clk 0:00:01.6]} 1-0

[Event "Live Chess"]
[Site "Chess.com"]
[Date "2011.01.27"]
[Round "-"]
[White "carreraKing"]
[Black "hipposcottimus"]
[Result "0-1"]
[CurrentPosition "1r4k1/5pbp/1q3np1/p1p5/8/1p3P1P/3r1PK1/1R2R3 w - -"]
[Timezone "UTC"]
[ECO "A00"]
[ECOUrl "https://www.chess.com/openings/Vant-Kruijs-Opening-1...e5"]
[UTCDate "2011.01.27"]
[UTCTime "03:30:41"]
[WhiteElo "1158"]
[BlackElo "1418"]
[TimeControl "480"]
[Termination "hipposcottimus won by resignation"]
[StartTime "03:30:41"]
[EndDate "2011.01.27"]
[EndTime "03:36:33"]
[Link "https://www.chess.com/game/live/91781138"]

1. e3 {[%clk 0:08:00]} 1... e5 {[%clk 0:08:00]} 2. Nf3 {[%clk 0:07:57.8]} 2... e4 {[%clk 0:07:57.7]} 3. Nd4 {[%clk 0:07:55.7]} 3... c5 {[%clk 0:07:56]} 4. Nf5 {[%clk 0:07:52.9]} 4... d6 {[%clk 0:07:49.1]} 5. Qg4 {[%clk 0:07:51.1]} 5... g6 {[%clk 0:07:42.8]} 6. Qxe4+ {[%clk 0:07:43.7]} 6... Be7 {[%clk 0:07:40.9]} 7. Ng7+ {[%clk 0:07:40.7]} 7... Kf8 {[%clk 0:07:36.6]} 8. Bc4 {[%clk 0:07:20.6]} 8... Kxg7 {[%clk 0:07:29.3]} 9. Qf4 {[%clk 0:07:18.6]} 9... Nf6 {[%clk 0:07:26.8]} 10. b3 {[%clk 0:07:13.4]} 10... Re8 {[%clk 0:07:22.3]} 11. Bb2 {[%clk 0:07:12]} 11... Kg8 {[%clk 0:07:21.3]} 12. Qh6 {[%clk 0:07:06.2]} 12... Bf8 {[%clk 0:07:11.8]} 13. Qg5 {[%clk 0:07:02.9]} 13... Bg7 {[%clk 0:07:09.8]} 14. d3 {[%clk 0:06:53.4]} 14... d5 {[%clk 0:07:08.5]} 15. Bb5 {[%clk 0:06:49.2]} 15... Re6 {[%clk 0:07:05.8]} 16. Be5 {[%clk 0:06:42.2]} 16... a6 {[%clk 0:07:04.2]} 17. Ba4 {[%clk 0:06:36.5]} 17... b5 {[%clk 0:07:02.9]} 18. Bxb8 {[%clk 0:06:32.3]} 18... Rxb8 {[%clk 0:07:02.5]} 19. Nd2 {[%clk 0:06:26.7]} 19... bxa4 {[%clk 0:07:01.2]} 20. Nf3 {[%clk 0:06:23.6]} 20... Qe7 {[%clk 0:06:44]} 21. e4 {[%clk 0:06:00.5]} 21... dxe4 {[%clk 0:06:38.9]} 22. dxe4 {[%clk 0:05:57.4]} 22... Rxe4+ {[%clk 0:06:37.4]} 23. Kf1 {[%clk 0:05:55.7]} 23... Bg4 {[%clk 0:06:32]} 24. h3 {[%clk 0:05:49.1]} 24... Bxf3 {[%clk 0:06:30.8]} 25. gxf3 {[%clk 0:05:47.7]} 25... Re2 {[%clk 0:06:20.4]} 26. Kg2 {[%clk 0:05:45.6]} 26... Rxc2 {[%clk 0:06:18.6]} 27. Rae1 {[%clk 0:05:43.5]} 27... Qd6 {[%clk 0:06:13.9]} 28. Qe3 {[%clk 0:05:32.9]} 28... Rxa2 {[%clk 0:06:07.1]} 29. Rd1 {[%clk 0:05:29.5]} 29... Qc6 {[%clk 0:05:56.7]} 30. Qf4 {[%clk 0:05:17.5]} 30... Qb6 {[%clk 0:05:44.3]} 31. Rhe1 {[%clk 0:05:11.4]} 31... axb3 {[%clk 0:05:41.9]} 32. Rb1 {[%clk 0:04:56.7]} 32... a5 {[%clk 0:05:39.8]} 33. Qd2 {[%clk 0:04:49.9]} 33... Rxd2 {[%clk 0:05:35.5]} 0-1

[Event "Live Chess"]
[Site "Chess.com"]
[Date "2011.01.27"]
[Round "-"]
[White "hipposcottimus"]
[Black "carreraKing"]
[Result "1-0"]
[CurrentPosition "rn1kR1B1/1bpP3p/p5p1/1p6/8/8/P4qPP/R2Q3K b - -"]
[Timezone "UTC"]
[ECO "C00"]
[ECOUrl "https://www.chess.com/openings/French-Defense-St-George-Three-Pawn-Attack"]
[UTCDate "2011.01.27"]
[UTCTime "03:25:18"]
[WhiteElo "1415"]
[BlackElo "1161"]
[TimeControl "480"]
[Termination "hipposcottimus won by checkmate"]
[StartTime "03:25:18"]
[EndDate "2011.01.27"]
[EndTime "03:30:18"]
[Link "https://www.chess.com/game/live/91779919"]

1. e4 {[%clk 0:08:00]} 1... e6 {[%clk 0:08:00]} 2. d4 {[%clk 0:07:58.6]} 2... a6 {[%clk 0:07:55.5]} 3. c4 {[%clk 0:07:57]} 3... b6 {[%clk 0:07:53.7]} 4. b4 {[%clk 0:07:54.7]} 4... Bb7 {[%clk 0:07:49.7]} 5. d5 {[%clk 0:07:51.3]} 5... exd5 {[%clk 0:07:47.1]} 6. cxd5 {[%clk 0:07:49.8]} 6... Be7 {[%clk 0:07:42.7]} 7. Bc4 {[%clk 0:07:42]} 7... b5 {[%clk 0:07:39.1]} 8. Bb3 {[%clk 0:07:38.4]} 8... Nf6 {[%clk 0:07:35.6]} 9. Nc3 {[%clk 0:07:30.6]} 9... g6 {[%clk 0:07:29.8]} 10. Nge2 {[%clk 0:07:20.7]} 10... Bxb4 {[%clk 0:07:28.1]} 11. O-O {[%clk 0:07:17.5]} 11... Qe7 {[%clk 0:07:07]} 12. Bg5 {[%clk 0:07:05.3]} 12... Qe5 {[%clk 0:07:00.4]} 13. f4 {[%clk 0:06:54.6]} 13... Qe7 {[%clk 0:06:54.1]} 14. e5 {[%clk 0:06:51.9]} 14... Bxc3 {[%clk 0:06:24.7]} 15. Nxc3 {[%clk 0:06:49.3]} 15... Qb4 {[%clk 0:06:17.6]} 16. Bxf6 {[%clk 0:06:46.1]} 16... Rg8 {[%clk 0:06:15]} 17. Ne4 {[%clk 0:06:36]} 17... Qxe4 {[%clk 0:06:10.2]} 18. Re1 {[%clk 0:06:24]} 18... Qxf4 {[%clk 0:06:02.8]} 19. e6 {[%clk 0:06:15.8]} 19... fxe6 {[%clk 0:05:38.8]} 20. dxe6 {[%clk 0:06:12.9]} 20... Qxf6 {[%clk 0:05:24.6]} 21. exd7+ {[%clk 0:06:05.6]} 21... Kd8 {[%clk 0:05:23.1]} 22. Bxg8 {[%clk 0:06:03.7]} 22... Qb6+ {[%clk 0:05:16.2]} 23. Kh1 {[%clk 0:06:00.3]} 23... Qf2 {[%clk 0:05:13.6]} 24. Re8# {[%clk 0:05:58.8]} 1-0

[Event "Live Chess"]
[Site "Chess.com"]
[Date "2011.01.27"]
[Round "-"]
[White "carreraKing"]
[Black "hipposcottimus"]
[Result "0-1"]
[CurrentPosition "6k1/p3b1pp/8/4R3/4p3/4n1P1/r6P/5rKR w - -"]
[Timezone "UTC"]
[ECO "A00"]
[ECOUrl "https://www.chess.com/openings/Anderssen-Opening-1...d5"]
[UTCDate "2011.01.27"]
[UTCTime "03:16:10"]
[WhiteElo "1164"]
[BlackElo "1412"]
[TimeControl "480"]
[Termination "hipposcottimus won by checkmate"]
[StartTime "03:16:10"]
[EndDate "2011.01.27"]
[EndTime "03:25:04"]
[Link "https://www.chess.com/game/live/91777840"]

1. a3 {[%clk 0:08:00]} 1... d5 {[%clk 0:08:00]} 2. b3 {[%clk 0:07:58.3]} 2... e5 {[%clk 0:07:58.6]} 3. Bb2 {[%clk 0:07:55.8]} 3... d4 {[%clk 0:07:56.3]} 4. g3 {[%clk 0:07:50.3]} 4... f5 {[%clk 0:07:54.2]} 5. Bg2 {[%clk 0:07:49]} 5... c6 {[%clk 0:07:49.6]} 6. Nf3 {[%clk 0:07:44.1]} 6... Bd6 {[%clk 0:07:42.9]} 7. Bh3 {[%clk 0:07:37.2]} 7... Nf6 {[%clk 0:07:39]} 8. Ng5 {[%clk 0:07:32.3]} 8... O-O {[%clk 0:07:34]} 9. d3 {[%clk 0:07:27.9]} 9... Ng4 {[%clk 0:07:27.1]} 10. Qd2 {[%clk 0:07:19.6]} 10... Be7 {[%clk 0:07:18.6]} 11. Nf3 {[%clk 0:07:12.7]} 11... e4 {[%clk 0:07:14.7]} 12. Ne5 {[%clk 0:07:08.9]} 12... Nxe5 {[%clk 0:07:12.5]} 13. Bxd4 {[%clk 0:07:02.4]} 13... Qxd4 {[%clk 0:07:09.9]} 14. Nc3 {[%clk 0:06:59.4]} 14... Ng4 {[%clk 0:06:58.2]} 15. e3 {[%clk 0:06:43.1]} 15... Qe5 {[%clk 0:06:44.7]} 16. d4 {[%clk 0:06:30.3]} 16... Qf6 {[%clk 0:06:27.7]} 17. Na4 {[%clk 0:06:15.9]} 17... Na6 {[%clk 0:06:08.4]} 18. b4 {[%clk 0:05:51.2]} 18... c5 {[%clk 0:05:57.1]} 19. dxc5 {[%clk 0:05:48.6]} 19... Rd8 {[%clk 0:05:50.2]} 20. Qe2 {[%clk 0:05:38]} 20... Bd7 {[%clk 0:05:48.2]} 21. Nb2 {[%clk 0:05:32.8]} 21... b6 {[%clk 0:05:43.8]} 22. Rb1 {[%clk 0:05:27.5]} 22... bxc5 {[%clk 0:05:39.9]} 23. Qxa6 {[%clk 0:05:24.7]} 23... cxb4 {[%clk 0:05:38.1]} 24. Qc4+ {[%clk 0:05:17.8]} 24... Be6 {[%clk 0:05:36]} 25. Qe2 {[%clk 0:05:06.2]} 25... Qc3+ {[%clk 0:05:34.1]} 26. Kf1 {[%clk 0:04:58.9]} 26... bxa3 {[%clk 0:05:32.2]} 27. Nd1 {[%clk 0:04:45.6]} 27... a2 {[%clk 0:05:28.4]} 28. Nxc3 {[%clk 0:04:07.7]} 28... Rac8 {[%clk 0:04:35.7]} 29. Nxa2 {[%clk 0:04:05.4]} 29... Bc4 {[%clk 0:04:34.2]} 30. Qxc4+ {[%clk 0:03:49.5]} 30... Rxc4 {[%clk 0:04:28.8]} 31. Kg2 {[%clk 0:03:47.4]} 31... Rxc2 {[%clk 0:04:25.7]} 32. Rb5 {[%clk 0:03:35.7]} 32... Rxf2+ {[%clk 0:04:18.4]} 33. Kg1 {[%clk 0:03:30.2]} 33... Rxa2 {[%clk 0:04:16.5]} 34. Rxf5 {[%clk 0:03:26.8]} 34... Nxe3 {[%clk 0:04:15.2]} 35. Re5 {[%clk 0:03:17.9]} 35... Rd1+ {[%clk 0:04:13.7]} 36. Bf1 {[%clk 0:03:12]} 36... Rxf1# {[%clk 0:04:12.7]} 0-1

[Event "Live Chess"]
[Site "Chess.com"]
[Date "2011.01.26"]
[Round "-"]
[White "hipposcottimus"]
[Black "Tomdrasp"]
[Result "0-1"]
[CurrentPosition "2k4r/1pP1npp1/6bp/4p3/P2b1q2/8/4B1PP/7K w - -"]
[Timezone "UTC"]
[ECO "C55"]
[ECOUrl "https://www.chess.com/openings/Italian-Game-Anti-Fried-Liver-Defense"]
[UTCDate "2011.01.26"]
[UTCTime "23:51:09"]
[WhiteElo "1409"]
[BlackElo "1387"]
[TimeControl "600"]
[Termination "Tomdrasp won - game abandoned"]
[StartTime "23:51:09"]
[EndDate "2011.01.26"]
[EndTime "23:56:45"]
[Link "https://www.chess.com/game/live/91729527"]

1. e4 {[%clk 0:10:00]} 1... e5 {[%clk 0:10:00]} 2. Nf3 {[%clk 0:09:58.9]} 2... Nc6 {[%clk 0:09:56.9]} 3. Bc4 {[%clk 0:09:57.2]} 3... h6 {[%clk 0:09:53.1]} 4. d4 {[%clk 0:09:55.5]} 4... d6 {[%clk 0:09:51.2]} 5. dxe5 {[%clk 0:09:52]} 5... dxe5 {[%clk 0:09:47.8]} 6. Bd2 {[%clk 0:09:51.6]} 6... Bg4 {[%clk 0:09:43.7]} 7. O-O {[%clk 0:09:49.2]} 7... Nf6 {[%clk 0:09:40.9]} 8. Be2 {[%clk 0:09:26.6]} 8... Nxe4 {[%clk 0:09:34.8]} 9. Nc3 {[%clk 0:09:17.6]} 9... Bxf3 {[%clk 0:09:21.8]} 10. Nxe4 {[%clk 0:09:13]} 10... Bxe4 {[%clk 0:09:17.5]} 11. c4 {[%clk 0:08:59]} 11... Bc5 {[%clk 0:09:08.5]} 12. Kh1 {[%clk 0:08:56.5]} 12... Qf6 {[%clk 0:08:50.6]} 13. f3 {[%clk 0:08:54.2]} 13... Bg6 {[%clk 0:08:44.1]} 14. a3 {[%clk 0:08:39.8]} 14... O-O-O {[%clk 0:08:42.2]} 15. b4 {[%clk 0:08:37.9]} 15... Be3 {[%clk 0:08:40.8]} 16. b5 {[%clk 0:08:23]} 16... Ne7 {[%clk 0:08:34.7]} 17. a4 {[%clk 0:08:12.3]} 17... Bxd2 {[%clk 0:08:25.5]} 18. c5 {[%clk 0:08:05.9]} 18... Bc3 {[%clk 0:07:54.2]} 19. b6 {[%clk 0:07:59.2]} 19... axb6 {[%clk 0:07:42.8]} 20. cxb6 {[%clk 0:07:55]} 20... Rxd1 {[%clk 0:07:24.4]} 21. bxc7 {[%clk 0:07:53]} 21... Rxa1 {[%clk 0:07:17.1]} 22. f4 {[%clk 0:07:51.6]} 22... Rxf1+ {[%clk 0:07:13.3]} 23. Bxf1 {[%clk 0:07:51.3]} 23... Qxf4 {[%clk 0:07:08.7]} 24. Be2 {[%clk 0:07:46.6]} 24... Bd4 {[%clk 0:06:50.2]} 0-1

[Event "Live Chess"]
[Site "Chess.com"]
[Date "2011.01.26"]
[Round "-"]
[White "hipposcottimus"]
[Black "EvanLopez"]
[Result "1-0"]
[CurrentPosition "r3q2k/pp3p1p/2p2B2/3p1pQ1/8/2P5/PP3PPP/RN3RK1 b - -"]
[Timezone "UTC"]
[ECO "C41"]
[ECOUrl "https://www.chess.com/openings/Philidor-Defense-3.Bc4-Nf6"]
[UTCDate "2011.01.26"]
[UTCTime "22:50:33"]
[WhiteElo "1614"]
[BlackElo "1637"]
[TimeControl "60"]
[Termination "hipposcottimus won by checkmate"]
[StartTime "22:50:33"]
[EndDate "2011.01.26"]
[EndTime "22:52:03"]
[Link "https://www.chess.com/game/live/91714911"]

1. e4 {[%clk 0:01:00]} 1... e5 {[%clk 0:01:00]} 2. Nf3 {[%clk 0:00:59.7]} 2... d6 {[%clk 0:00:59.3]} 3. Bc4 {[%clk 0:00:59.5]} 3... Nf6 {[%clk 0:00:58.7]} 4. d4 {[%clk 0:00:59.2]} 4... exd4 {[%clk 0:00:57.7]} 5. Nxd4 {[%clk 0:00:53.6]} 5... Nc6 {[%clk 0:00:57.1]} 6. e5 {[%clk 0:00:50.3]} 6... Nxd4 {[%clk 0:00:56]} 7. exf6 {[%clk 0:00:49.6]} 7... Qxf6 {[%clk 0:00:55.2]} 8. c3 {[%clk 0:00:49.1]} 8... Nf5 {[%clk 0:00:52.8]} 9. O-O {[%clk 0:00:47.1]} 9... Be7 {[%clk 0:00:51.5]} 10. Qf3 {[%clk 0:00:36]} 10... O-O {[%clk 0:00:49.5]} 11. Bd3 {[%clk 0:00:35.5]} 11... Nh6 {[%clk 0:00:46.6]} 12. Qe4 {[%clk 0:00:30.6]} 12... g6 {[%clk 0:00:44.7]} 13. Bxh6 {[%clk 0:00:28.7]} 13... c6 {[%clk 0:00:40.5]} 14. Bxf8 {[%clk 0:00:27.3]} 14... d5 {[%clk 0:00:38.2]} 15. Bxe7 {[%clk 0:00:25.5]} 15... Qg7 {[%clk 0:00:33.7]} 16. Qh4 {[%clk 0:00:18.5]} 16... Bf5 {[%clk 0:00:32.5]} 17. Bf6 {[%clk 0:00:17.6]} 17... Qf8 {[%clk 0:00:30.8]} 18. Be7 {[%clk 0:00:16.3]} 18... Qe8 {[%clk 0:00:28.8]} 19. Bxf5 {[%clk 0:00:15.9]} 19... gxf5 {[%clk 0:00:27.8]} 20. Qg5+ {[%clk 0:00:15]} 20... Kh8 {[%clk 0:00:26.1]} 21. Bf6# {[%clk 0:00:14.2]} 1-0

[Event "Live Chess"]
[Site "Chess.com"]
[Date "2011.01.26"]
[Round "-"]
[White "hipposcottimus"]
[Black "samdvick"]
[Result "0-1"]
[CurrentPosition "6k1/4nqb1/p2r1rpp/5p2/2p2P2/2P3B1/P5PP/R2QR1K1 w - -"]
[Timezone "UTC"]
[ECO "B06"]
[ECOUrl "https://www.chess.com/openings/Modern-Defense-with-1-e4-2.d4-Bg7"]
[UTCDate "2011.01.26"]
[UTCTime "22:47:31"]
[WhiteElo "1605"]
[BlackElo "1706"]
[TimeControl "60"]
[Termination "samdvick won on time"]
[StartTime "22:47:31"]
[EndDate "2011.01.26"]
[EndTime "22:49:11"]
[Link "https://www.chess.com/game/live/91714031"]

1. e4 {[%clk 0:01:00]} 1... g6 {[%clk 0:01:00]} 2. d4 {[%clk 0:00:59.1]} 2... Bg7 {[%clk 0:00:59.8]} 3. e5 {[%clk 0:00:58.9]} 3... e6 {[%clk 0:00:59.4]} 4. Bf4 {[%clk 0:00:55]} 4... Ne7 {[%clk 0:00:59]} 5. Bg3 {[%clk 0:00:54.7]} 5... d5 {[%clk 0:00:58.6]} 6. f4 {[%clk 0:00:52.5]} 6... O-O {[%clk 0:00:56.9]} 7. Bd3 {[%clk 0:00:52.2]} 7... f6 {[%clk 0:00:56.2]} 8. Nf3 {[%clk 0:00:51.9]} 8... f5 {[%clk 0:00:55.5]} 9. O-O {[%clk 0:00:48.1]} 9... Qe8 {[%clk 0:00:53.9]} 10. Ng5 {[%clk 0:00:47.8]} 10... h6 {[%clk 0:00:52.1]} 11. Nf3 {[%clk 0:00:35.8]} 11... c5 {[%clk 0:00:50.2]} 12. c3 {[%clk 0:00:32.8]} 12... c4 {[%clk 0:00:49.6]} 13. Bc2 {[%clk 0:00:32]} 13... Nbc6 {[%clk 0:00:49.3]} 14. Ba4 {[%clk 0:00:31.7]} 14... a6 {[%clk 0:00:47.6]} 15. b3 {[%clk 0:00:31.2]} 15... b5 {[%clk 0:00:46.9]} 16. bxc4 {[%clk 0:00:29.6]} 16... bxa4 {[%clk 0:00:45.9]} 17. cxd5 {[%clk 0:00:29.3]} 17... exd5 {[%clk 0:00:44.5]} 18. Qxa4 {[%clk 0:00:29]} 18... Bd7 {[%clk 0:00:42.7]} 19. Qd1 {[%clk 0:00:23.5]} 19... Na5 {[%clk 0:00:40.3]} 20. Na3 {[%clk 0:00:23]} 20... Nc4 {[%clk 0:00:39.4]} 21. Nxc4 {[%clk 0:00:21.9]} 21... dxc4 {[%clk 0:00:38.9]} 22. d5 {[%clk 0:00:21]} 22... Rd8 {[%clk 0:00:36.4]} 23. e6 {[%clk 0:00:19.9]} 23... Bxe6 {[%clk 0:00:33.8]} 24. d6 {[%clk 0:00:17.3]} 24... Rf6 {[%clk 0:00:30.5]} 25. Ne5 {[%clk 0:00:12.4]} 25... Bf7 {[%clk 0:00:29]} 26. Nxf7 {[%clk 0:00:10.3]} 26... Qxf7 {[%clk 0:00:27.9]} 27. Re1 {[%clk 0:00:08.3]} 27... Rdxd6 {[%clk 0:00:25.2]} 0-1

[Event "Live Chess"]
[Site "Chess.com"]
[Date "2011.01.26"]
[Round "-"]
[White "samdvick"]
[Black "hipposcottimus"]
[Result "1-0"]
[CurrentPosition "rn3rk1/pp1qN1pp/4R3/3p4/1P6/4Q3/2P3PP/2B3K1 b - -"]
[Timezone "UTC"]
[ECO "B12"]
[ECOUrl "https://www.chess.com/openings/Caro-Kann-Defense-2.d4-d5"]
[UTCDate "2011.01.26"]
[UTCTime "22:45:31"]
[WhiteElo "1700"]
[BlackElo "1611"]
[TimeControl "60"]
[Termination "samdvick won on time"]
[StartTime "22:45:31"]
[EndDate "2011.01.26"]
[EndTime "22:47:09"]
[Link "https://www.chess.com/game/live/91713562"]

1. d4 {[%clk 0:01:00]} 1... d5 {[%clk 0:01:00]} 2. e4 {[%clk 0:00:59.6]} 2... c6 {[%clk 0:00:59.2]} 3. Nc3 {[%clk 0:00:59.3]} 3... e6 {[%clk 0:00:56.5]} 4. e5 {[%clk 0:00:58.9]} 4... Bb4 {[%clk 0:00:55.7]} 5. f4 {[%clk 0:00:58.2]} 5... c5 {[%clk 0:00:52.7]} 6. a3 {[%clk 0:00:57.6]} 6... cxd4 {[%clk 0:00:51.7]} 7. axb4 {[%clk 0:00:55.8]} 7... dxc3 {[%clk 0:00:51.4]} 8. bxc3 {[%clk 0:00:55.3]} 8... Qc7 {[%clk 0:00:48.9]} 9. Nf3 {[%clk 0:00:52.3]} 9... Qxc3+ {[%clk 0:00:46.7]} 10. Qd2 {[%clk 0:00:52]} 10... Qxa1 {[%clk 0:00:45.1]} 11. Bd3 {[%clk 0:00:48.3]} 11... Qa4 {[%clk 0:00:41.1]} 12. O-O {[%clk 0:00:47.1]} 12... Qd7 {[%clk 0:00:40]} 13. f5 {[%clk 0:00:45.9]} 13... f6 {[%clk 0:00:39.1]} 14. fxe6 {[%clk 0:00:44.9]} 14... Qxe6 {[%clk 0:00:38]} 15. Nh4 {[%clk 0:00:44.5]} 15... fxe5 {[%clk 0:00:36.6]} 16. Bf5 {[%clk 0:00:43.5]} 16... Qc6 {[%clk 0:00:33]} 17. Re1 {[%clk 0:00:41.8]} 17... Bxf5 {[%clk 0:00:26.1]} 18. Rxe5+ {[%clk 0:00:40.1]} 18... Be6 {[%clk 0:00:24.1]} 19. Qe3 {[%clk 0:00:38.8]} 19... Ne7 {[%clk 0:00:16.1]} 20. Rxe6 {[%clk 0:00:37.5]} 20... Qd7 {[%clk 0:00:05.6]} 21. Nf5 {[%clk 0:00:35.8]} 21... O-O {[%clk 0:00:00.5]} 22. Nxe7+ {[%clk 0:00:32.7]} 1-0

[Event "Live Chess"]
[Site "Chess.com"]
[Date "2011.01.26"]
[Round "-"]
[White "hipposcottimus"]
[Black "samdvick"]
[Result "0-1"]
[CurrentPosition "8/5p2/pb2p2p/6k1/6P1/r5K1/8/8 w - -"]
[Timezone "UTC"]
[ECO "B06"]
[ECOUrl "https://www.chess.com/openings/Modern-Defense-with-1-e4-2.Nf3"]
[UTCDate "2011.01.26"]
[UTCTime "22:43:22"]
[WhiteElo "1617"]
[BlackElo "1694"]
[TimeControl "60"]
[Termination "samdvick won on time"]
[StartTime "22:43:22"]
[EndDate "2011.01.26"]
[EndTime "22:45:22"]
[Link "https://www.chess.com/game/live/91712891"]

1. e4 {[%clk 0:01:00]} 1... g6 {[%clk 0:01:00]} 2. Nf3 {[%clk 0:00:59.7]} 2... Bg7 {[%clk 0:00:59.7]} 3. e5 {[%clk 0:00:59.1]} 3... d6 {[%clk 0:00:58.1]} 4. d4 {[%clk 0:00:58.8]} 4... dxe5 {[%clk 0:00:57.4]} 5. dxe5 {[%clk 0:00:58.6]} 5... e6 {[%clk 0:00:57.1]} 6. Qxd8+ {[%clk 0:00:57]} 6... Kxd8 {[%clk 0:00:55.1]} 7. Nc3 {[%clk 0:00:56.7]} 7... Bd7 {[%clk 0:00:54.7]} 8. Bf4 {[%clk 0:00:55.6]} 8... Nc6 {[%clk 0:00:54]} 9. Bb5 {[%clk 0:00:54.7]} 9... Nge7 {[%clk 0:00:53.2]} 10. O-O-O {[%clk 0:00:54.4]} 10... Kc8 {[%clk 0:00:50.2]} 11. Ba4 {[%clk 0:00:49]} 11... a6 {[%clk 0:00:49.3]} 12. Bb3 {[%clk 0:00:47.5]} 12... b5 {[%clk 0:00:48.4]} 13. Nd4 {[%clk 0:00:46.3]} 13... Nxd4 {[%clk 0:00:47.2]} 14. Rxd4 {[%clk 0:00:45.5]} 14... b4 {[%clk 0:00:46.3]} 15. Rxb4 {[%clk 0:00:44]} 15... h6 {[%clk 0:00:44.1]} 16. Ba4 {[%clk 0:00:42.9]} 16... Bxa4 {[%clk 0:00:42.1]} 17. Rxa4 {[%clk 0:00:42.6]} 17... g5 {[%clk 0:00:41.9]} 18. Be3 {[%clk 0:00:41]} 18... Bxe5 {[%clk 0:00:40.3]} 19. g3 {[%clk 0:00:38.5]} 19... Bd6 {[%clk 0:00:39.5]} 20. Ne4 {[%clk 0:00:35.5]} 20... Kd7 {[%clk 0:00:38.5]} 21. Rd4 {[%clk 0:00:34.1]} 21... Nf5 {[%clk 0:00:35.9]} 22. Nf6+ {[%clk 0:00:33.1]} 22... Ke7 {[%clk 0:00:34.5]} 23. Rd3 {[%clk 0:00:22.2]} 23... Kxf6 {[%clk 0:00:33.2]} 24. Bd4+ {[%clk 0:00:20.9]} 24... Nxd4 {[%clk 0:00:32.1]} 25. Rxd4 {[%clk 0:00:20.7]} 25... Be5 {[%clk 0:00:31.7]} 26. Rd7 {[%clk 0:00:18.8]} 26... Rab8 {[%clk 0:00:31.1]} 27. Rxc7 {[%clk 0:00:17.7]} 27... Bxb2+ {[%clk 0:00:30.2]} 28. Kd1 {[%clk 0:00:17.4]} 28... Rhd8+ {[%clk 0:00:28.8]} 29. Ke2 {[%clk 0:00:16.4]} 29... Be5 {[%clk 0:00:27.4]} 30. Kf3 {[%clk 0:00:15.5]} 30... Bxc7 {[%clk 0:00:25.6]} 31. Re1 {[%clk 0:00:14.3]} 31... Rd2 {[%clk 0:00:24]} 32. g4 {[%clk 0:00:13.8]} 32... Rb2 {[%clk 0:00:22.8]} 33. Re2 {[%clk 0:00:10.2]} 33... Rbxc2 {[%clk 0:00:21]} 34. Rxd2 {[%clk 0:00:09]} 34... Rxd2 {[%clk 0:00:20.3]} 35. Kg2 {[%clk 0:00:06.2]} 35... Bb6 {[%clk 0:00:19.6]} 36. h4 {[%clk 0:00:05.9]} 36... Rxf2+ {[%clk 0:00:18.9]} 37. Kh3 {[%clk 0:00:04.9]} 37... Rxa2 {[%clk 0:00:18.6]} 38. hxg5+ {[%clk 0:00:03.6]} 38... Kxg5 {[%clk 0:00:17]} 39. Kg3 {[%clk 0:00:03.3]} 39... Ra3+ {[%clk 0:00:16.2]} 0-1